{"text_format":"1","workbook":"xlsx","n_sheets":27,"sheets":["פיזי","תעריף שעתי","בטיחות בעבודה תנועה  "," תנועה","הסדרי זמניים ","הנדסת דרכים (פיזי) ","אדר' מבנים","אדר' נוף","מע' רטובות","קרקע וביסוס","תאורת דרכים","תכנון חשמל במבנים","קונסטקוקציה","רמזורים","תכן מבנה ","תאום תשתיות","תקשורת","אגרונום להתקשרות חדשה","נגישות מהיר לעיר","נגישות","תכנון מנה\"פ תכנון מכרז 9.16","מכתב למינוי מתכננים","מכתב עדכון שכר טרחה למתכנן","מכרז 12-19 - ניהול פרויקט תכנון","מכרז 12-19-ניהול פרויקט ביצוע","מכתב מינוי לניהול ","מכתב עדכון שכר טרחה לניהול"],"not_rendered":{"charts":0,"images":0,"macros":1,"external_links":0,"defined_names":9,"comments":0,"pivot_tables":0},"unopened":[],"bounds":{"document_bytes":16777216,"sheet_cells":100000,"rows_first":2000,"rows_last":500,"rows_between":2000,"halvings":0,"cell_chars":16384,"cell_head_chars":4096},"cells_cut":0,"cells_raw":0,"read":"whole","date_system":"1900"}

{"sheet":"פיזי","index":0,"n_rows":15,"n_cols":5,"rows_kept":15,"cut":false,"hidden":true,"merged":[[7,0,9,0],[10,0,12,0],[5,2,5,3]]}
["כבישים עירוניים"]
["שם המתכנן גאומטרי"]
["שם ומספר הפרויקט"]
["מס חוזה"]
[]
[null,"רוחב מבנה","אומדן",null,"הערות"]
[null,null,"מבנה מלא","מבנה לא מלא"]
["כבישים בין עירוניים","ברוחב 7 מ' לפחות "]
[null,"ברוחב 10.5 מ' לפחות "]
[null,"ברוחב קטן מ 7 מ'"]
["כבישים עירוניים","ברוחב 6 מ' לפחות "]
[null,"ברוחב 9 מ' לפחות "]
[null,"ברוחב קטן מ 6 מ'"]
[]
["תכולת עבודה"]

{"sheet":"תעריף שעתי","index":1,"n_rows":29,"n_cols":7,"rows_kept":29,"cut":false,"hidden":false,"merged":[[42,0,42,3],[14,1,14,4],[26,0,26,8],[37,0,37,3],[37,4,37,7],[32,0,32,3],[32,4,32,7],[33,0,33,3],[33,4,33,7],[34,0,34,3],[34,4,34,7],[35,0,35,3],[36,0,36,3],[36,4,36,7],[29,0,29,3],[27,0,27,3],[0,0,0,7],[23,1,23,4],[19,1,19,4],[20,1,20,4],[21,1,21,4],[15,1,15,4],[17,1,17,4],[2,1,2,4],[3,1,3,4],[18,1,18,4],[12,1,12,4],[13,1,13,4],[4,1,4,4],[9,1,9,4],[27,4,27,7],[28,0,28,8],[5,1,5,4],[35,4,35,7],[6,1,6,4],[10,1,10,4],[11,1,11,4],[29,4,29,7],[30,0,30,3],[30,4,30,7],[31,0,31,3],[31,4,31,7]]}
["תעריף שעתי נתיבי איילון"]
[]
["שם המתכנן "]
["שם הפרוקט"]
["מס' חוזה/ בקשה"]
["שם מנה\"פ"]
["פרטי קשר של מנה\"פ"]
[]
[]
["סוג מתכנן"," הרכב הצוות (שמות המתכנננים/ יועצים)",null,null,null,"כמות שעות נוכחית","כמות שעות מצטברת"]
["מתכנן מומחה"]
["מתכנן 1"]
["מתכנן 2"]
["מתכנן 3"]
["מתכנן 4"]
["מתכנן 5"]
["מתכנן 6"]
["סוג יועץ","יועצים",null,null,null,"כמות שעות נוכחית","כמות שעות מצטברת"]
["יועץ 1"]
["יועץ 2"]
["יועץ 3"]
["יועץ 4"]
["יועץ 5"]
["יועץ 6"]
[]
[]
["יש לצרף את התצהיר\n\n"]
[]
["חתימה מנה\"פ/ חטיבה המבצעת"]

{"sheet":"בטיחות בעבודה תנועה  ","index":2,"n_rows":23,"n_cols":7,"rows_kept":23,"cut":false,"hidden":false,"merged":[[21,0,21,3],[21,4,21,5],[22,0,22,8],[0,0,0,4],[27,0,27,3],[27,4,27,5],[8,1,8,2],[16,1,16,4],[1,0,1,4],[3,1,3,4],[4,1,4,4],[5,1,5,4],[6,1,6,4],[7,1,7,4],[23,0,23,3],[23,4,23,5],[18,0,18,3],[18,4,18,5],[19,0,19,8],[31,0,31,4],[10,1,10,4],[11,1,11,4],[12,1,12,4],[13,1,13,4],[14,1,14,4],[24,0,24,3],[24,4,24,5],[25,0,25,3],[25,4,25,5],[26,0,26,3],[26,4,26,5],[28,0,28,3],[28,4,28,5],[20,0,20,3],[20,4,20,5]]}
[" מהדורה 9.22"]
["תעריף נתיבי איילון - בטיחות בעבודה / בתנועה"]
[]
["שם המתכנן "]
["שם הפרוקט"]
["מס' חוזה/ בקשה"]
["שם מנה\"פ"]
["פרטי קשר של מנה\"פ"]
[]
[]
["סוג יועץ","יועצים",null,null,null,"כמות שעות נוכחית","כמות שעות מצטברת"]
["יועץ 1"]
["יועץ 2"]
["יועץ 3"]
["יועץ 4"]
["יועץ 5"]
["יועץ 6"]
[]
[]
["יש לצרף את התצהיר\n\n"]
[]
[]
["חתימה מנה\"פ/ חטיבה המבצעת"]

{"sheet":" תנועה","index":3,"n_rows":57,"n_cols":11,"rows_kept":57,"cut":false,"hidden":false,"merged":[[56,0,56,11],[28,0,28,2],[7,1,7,3],[12,0,12,1],[12,5,12,6],[13,0,13,1],[13,5,13,6],[15,5,15,6],[16,0,16,1],[16,5,16,6],[17,0,17,1],[17,5,17,6],[11,0,11,1],[11,5,11,6],[9,0,10,1],[9,2,9,3],[36,0,36,2],[37,0,37,1],[19,0,19,2],[20,0,20,1],[29,0,29,1],[15,0,15,1],[0,0,0,9],[3,1,3,3],[4,1,4,3],[5,1,5,3],[6,1,6,3],[1,0,1,8],[1,9,1,10],[9,4,9,6],[9,7,10,7],[10,5,10,6],[14,0,14,1],[14,5,14,6],[50,0,50,1],[47,0,47,1],[48,0,48,1],[49,0,49,1],[44,10,46,10],[45,2,46,2],[45,3,46,3],[45,4,46,4],[45,5,46,5],[45,6,45,9],[44,0,46,1],[44,2,44,3],[44,4,44,9]]}
[]
["תעריף נתיבי איילון הנדסת תנועה ותחבורה "]
[]
["שם המתכנן "]
["שם הפרוקט"]
["מס' חוזה/ בקשה"]
["שם מנה\"פ"]
["פרטי קשר של מנה\"פ"]
[]
["סוג העבודה",null,"שלבי תכנון",null,"עדכון שכ\"ט לשלבי תכנון  לפי לתוצאת מכרז",null,null,"עדכון פ\"ע לפי חשבון סופי של קבלן                 (שטח מ\"ר)"]
[null,null,"שם מקטע","שטח/ שטח מעודכן  (מ\"ר)","מס' מכרז","שטח מעודכן (מ\"ר)"]
["תכנון תכנית מתאר"]
["צמתים ורחובות","צמתים ורחובות"]
["ברשתות דרכים קיימות","ברשתות דרכים קיימות"]
["סה\"כ צמתים ורחובות ורשתות קיימות",null,null,{"$f":"SUM(D12:D14)","v":0}]
["חניה במבנים"]
["חניה במגרשים"]
["סה\"כ חניות",null,null,{"$f":"SUM(D16:D17)","v":0}]
[]
["חניה במבנים/ מגרשים"]
["שירותים חלקיים (אבני דרך)",null,"תכנון   ב - %"]
["תכנון מוקדם ",0.35,"%"]
["תכנון סופי ",0.25,"%"]
["טיפול  באישור הרשויות",0.1,"%"]
["תכנון מפורט ",0.2,"%"]
["פיקוח עליון",0.08,"%"]
["בדיקת ואישור חשבון סופי של הקבלן",0.02,"אופציה"]
[]
["צמתים ורחובות"]
["שירותים חלקיים (אבני דרך)",null,"תכנון   ב - %"]
["תכנון מוקדם ",0.35,"%"]
["תכנון סופי ",0.25,"%"]
["תכנון מפורט ",0.3,"%"]
["פיקוח עליון",0.08,"%"]
["בדיקת ואישור חשבון סופי של הקבלן",0.02,"אופציה"]
[]
["ברשתות דרכים קיימות"]
["שירותים חלקיים (אבני דרך)",null,"תכנון   ב - %"]
["תכנון מוקדם ",0.5,"%"]
["תכנון מפורט ",0.4,"%"]
["פיקוח עליון",0.08,"%"]
["בדיקת ואישור חשבון סופי של הקבלן",0.02,"אופציה"]
[]
[]
["סוג העבודה",null,"שלבי תכנון",null,"רה תכנון",null,null,null,null,null,"מהות רה תכנון"]
[null,null,"שם מקטע","שטח/ שטח מעודכן  (מ\"ר)","מס' שיפוט שעבר","ערך השינוי (מ\"ר)","שרותים חלקיים (אבני דרך)"]
[null,null,null,"אומדן",null,"אומדן שינוי ","מוקדם %","סופי %","אישור רשויות%","מפורט %"]
["תכנון תכנית מתאר"]
["צמתים ורחובות","צמתים ורחובות"]
["ברשתות דרכים קיימות","ברשתות דרכים קיימות"]
["סה\"כ צמתים ורחובות ורשתות קיימות",null,null,{"$f":"SUM(D48:D50)","v":0}]
["חניה במבנים"]
["חניה במגרשים"]
["סה\"כ חניות",null,null,{"$f":"SUM(D51:D53)","v":0}]
[]
[]
["חתימה מנה\"פ/ חטיבה המבצעת"]

{"sheet":"הסדרי זמניים ","index":4,"n_rows":35,"n_cols":11,"rows_kept":35,"cut":false,"hidden":false,"merged":[[29,0,29,1],[30,0,30,1],[34,0,34,11],[17,8,17,10],[18,0,18,1],[18,4,18,5],[18,8,18,9],[25,0,27,1],[25,2,25,3],[25,4,25,9],[25,10,27,10],[26,2,27,2],[26,3,27,3],[26,4,27,4],[26,5,27,5],[26,6,26,9],[28,0,28,1],[14,0,14,1],[14,5,14,6],[15,0,15,1],[15,5,15,6],[17,0,17,2],[17,4,17,6],[11,0,11,1],[11,5,11,6],[12,0,12,1],[12,5,12,6],[13,0,13,1],[13,5,13,6],[7,1,7,3],[9,0,10,1],[9,2,9,3],[9,4,9,6],[9,7,10,7],[10,5,10,6],[6,1,6,3],[0,0,0,9],[1,0,1,10],[3,1,3,3],[4,1,4,3],[5,1,5,3]]}
["מהדורה 3.22"]
["תעריף נתיבי איילון  הנדסת תנועה ותחבורה -  הסדרי תנועה זמניים"]
[]
["שם המתכנן "]
["שם הפרוקט"]
["מס' חוזה/ בקשה"]
["שם מנה\"פ"]
["פרטי קשר של מנה\"פ"]
[]
["סוג העבודה",null,"שלבי תכנון",null,"עדכון שכ\"ט לשלבי תכנון  לפי לתוצאת מכרז",null,null,"עדכון פ\"ע לפי חשבון סופי של קבלן                 (שטח מ\"ר)"]
[null,null,"שם מקטע","שטח/ שטח מעודכן  (מ\"ר)","מס' מכרז"," שטח מעודכן (מ\"ר)"]
["צמתים ורחובות","צמתים ורחובות"]
["ברשתות דרכים קיימות","ברשתות דרכים קיימות"]
["סה\"כ ",null,null,{"$f":"SUM(D12:D13)","v":0}]
["חניה במגרשים"]
["סה\"כ חניות",null,null,{"$f":"SUM(D15:D15)","v":0}]
[]
["אבני דרך "]
["שירותים חלקיים (אבני דרך)",null,"תכנון   ב - %"]
["תכנון מוקדם +סופי",0.25,"%"]
["תכנון מפורט ",0.3,"%"]
["פיקוח עליון",0.08,"%"]
[]
[]
[]
["סוג העבודה",null,"שלבי תכנון",null,"רה תכנון",null,null,null,null,null,"מהות רה תכנון"]
[null,null,"שם מקטע","שטח/ שטח מעודכן  (מ\"ר)","מס' שיפוט שעבר","ערך השינוי (מ\"ר)","שרותים חלקיים (אבני דרך)"]
[null,null,null,"אומדן",null,"אומדן שינוי ","מוקדם %","סופי %","אישור רשויות%","מפורט %"]
["צמתים ורחובות","צמתים ורחובות"]
["ברשתות דרכים קיימות","ברשתות דרכים קיימות"]
["סה\"כ ",null,null,{"$f":"SUM(D29:D30)","v":0}]
["חניה במגרשים"]
["סה\"כ חניות",null,null,{"$f":"SUM(D31:D32)","v":0}]
[]
["חתימה מנה\"פ/ חטיבה המבצעת"]

{"sheet":"הנדסת דרכים (פיזי) ","index":5,"n_rows":47,"n_cols":15,"rows_kept":47,"cut":false,"hidden":false,"merged":[[46,0,46,11],[0,0,0,16],[14,0,16,0],[9,13,9,14],[8,0,10,0],[8,1,10,1],[2,1,2,4],[3,1,3,4],[4,1,4,4],[5,1,5,4],[9,7,9,8],[9,9,9,10],[8,5,8,10],[9,11,9,12],[9,5,10,5],[37,0,39,0],[40,0,42,0],[35,2,36,2],[35,3,35,4],[45,2,45,10],[34,1,36,1],[34,2,34,4],[35,6,36,6],[34,5,34,12],[35,7,35,8],[35,9,35,10],[35,11,35,12],[35,5,36,5],[8,13,8,14],[34,13,36,13],[8,11,8,12],[34,0,36,0],[26,0,28,0],[8,2,8,4],[21,0,22,0],[20,0,20,2],[23,0,25,0],[11,0,13,0],[9,3,9,4],[9,2,10,2],[9,6,10,6],[29,0,31,0]]}
["תעריף נתיבי איילון הנדסת דרכים - גיאומטרי"]
[]
["שם המתכנן "]
["שם הפרוקט"]
["מס' חוזה/ בקשה"]
["שם מנה\"פ"]
["פרטי קשר של מנה\"פ"]
[]
["סוג הכביש","רוחב המבנה","שלבי תכנון",null,null,"עדכון שכ\"ט לשלבי תכנון  לפי לתוצאת מכרז",null,null,null,null,null,"פיקוח עליון ",null,"פיקוח עליון "]
[null,null,"שם מקטע","אומדן/  אומדן מעודכן",null,"מס' מכרז","הנחת קבלן","בקרת אומדן / RFT",null,"תוצאת מכרז",null,"הקמת חוזה לפי תוצאת מכרז",null,"עדכון פ\"ע לפי חשבון סופי של קבלן"]
[null,null,null,"מבנה מלא","מבנה לא מלא",null,null,"מבנה מלא","מבנה לא מלא","מבנה מלא","מבנה לא מלא","מבנה מלא","מבנה לא מלא","מבנה מלא","מבנה לא מלא"]
["כבישים בין עירוניים","ברוחב 10.5 מ' לפחות "]
[null,"ברוחב 7 מ' לפחות "]
[null,"ברוחב קטן מ 7 מ'"]
["כבישים עירוניים","ברוחב 9 מ' לפחות "]
[null,"ברוחב 6 מ' לפחות "]
[null,"ברוחב קטן מ 6 מ'"]
["סה\"כ ",null,{"$f":"SUM(C13:C17)","v":0}]
[]
[]
["שירותים חלקיים  (אבני דרך)",null,null,"תכנון             ב - %","הערות"]
["תכנון מוקדם","תכנון מוקדם ",7.4999999999999997E-2,"%"]
[null,"תיווי ",7.4999999999999997E-2,"%"]
["תכנון סופי","מדידות","{15%}","%","לא רלוונטי למתכנן"]
[null,"תוכניות סופיות ",0.1,"%"]
[null,"תוכניות הגשה עקרוניות וטיפול באישורן ",0.05,"%"]
["תכנון מפורט","חישובי המבנה","{2%}","%","לא רלוונטי למתכנן"]
[null,"תוכניות עבודה כוללות",0.28000000000000003,"%"]
[null,"מיפרט וכתב כמויות ",0.05,"%"]
["פיקוח עליון ","פיקוח עליון ",0.15,"%"]
[null,"קבלת המבנה ואישורו",0.03,"%"]
[null,"בדיקת ואישור חשבון סופי של הקבלן",0.02,"%","אופציה"]
[]
[]
["סוג הכביש","רוחב המבנה","שלבי תכנון",null,null,"רה תכנון - שרותים חלקיים (אבני דרך)",null,null,null,null,null,null,null,"מהות רה תכנון"]
[null,null,"שם מקטע","אומדן/  אומדן מעודכן",null,"מס' שיפוט שעבר","ערך השינוי (₪)","מוקדם %",null,"סופי %",null,"מפורט %"]
[null,null,null,"מבנה מלא","מבנה לא מלא",null,"אומדן שינוי ","מבנה מלא","מבנה לא מלא","מבנה מלא","מבנה לא מלא","מבנה מלא","מבנה לא מלא"]
["כבישים בין עירוניים","ברוחב 10.5 מ' לפחות "]
[null,"ברוחב 7 מ' לפחות "]
[null,"ברוחב קטן מ 7 מ'"]
["כבישים עירוניים","ברוחב 9 מ' לפחות "]
[null,"ברוחב 6 מ' לפחות "]
[null,"ברוחב קטן מ 6 מ'"]
["סה\"כ ",null,{"$f":"SUM(C39:C43)","v":0}]
[]
[]
["חתימה מנה\"פ/ חטיבה המבצעת"]

{"sheet":"אדר' מבנים","index":6,"n_rows":45,"n_cols":12,"rows_kept":45,"cut":false,"hidden":false,"merged":[[44,0,44,11],[5,1,5,3],[0,0,0,11],[24,1,24,2],[25,1,25,2],[26,1,26,2],[19,0,19,3],[20,1,20,2],[21,1,21,2],[22,1,22,2],[23,1,23,2],[21,0,22,0],[23,0,24,0],[6,1,6,3],[7,1,7,3],[8,1,8,3],[31,6,32,6],[31,8,31,10],[31,7,32,7],[30,5,30,10],[9,1,9,3],[11,10,11,11],[13,0,13,1],[14,0,14,1],[16,0,16,1],[27,1,27,2],[25,0,27,0],[30,11,32,11],[36,0,36,1],[37,0,37,2],[11,5,11,9],[33,0,33,1],[34,0,34,1],[35,0,35,1],[11,2,11,4],[17,0,17,2],[15,0,15,1],[31,4,32,4],[30,2,30,4],[30,0,32,1],[11,0,12,1],[31,2,32,2],[31,3,32,3],[31,5,32,5]]}
["תעריף נתיבי איילון אדריכלות בנין  -  אדריכלות מבנים"]
[]
[]
[]
[]
["שם המתכנן "]
["שם הפרוקט"]
["מס' חוזה/ בקשה"]
["שם מנה\"פ"]
["פרטי קשר של מנה\"פ"]
[]
["סוג העבודה",null,"שלבי תכנון",null,null,"עדכון שכ\"ט לשלבי תכנון  לפי לתוצאת מכרז",null,null,null,null,"פיקוח עליון "]
[null,null,"שם מקטע","אומדן/  אומדן מעודכן","שטח /שטח מעודכן(מ\"ר)","מס' מכרז","הנחת קבלן","בקרת אומדן / RFT/","שטח מעודכן (מ\"ר)","תוצאת מכרז","הקמת חוזה לפי תוצאת מכרז","עדכון פ\"ע לפי חשבון סופי של קבלן"]
["גשרים (קבוצה 1)"]
["קירות תומכים (קבוצה 1)"]
["מבנים הנדסיים אחרים (קבוצות 2-5)"]
["עבודות מיוחדות (קבוצה 6)"]
["סה\"כ"]
[]
["שירותים חלקיים (אבני דרך)",null,null,null,"תכנון        ב - %"]
["תכנון מוקדם","ת.מוקדם",null,0.2,"%"]
["תכנון סופי ","ת.סופי ותוכניות מסכמות",null,0.15,"%"]
[null,"תוכניות להגשה וטיפול באישור הרשויות",null,0.08,"%"]
["תכנון מפורט","תוכניות עבודה כוללות",null,0.22,"%"]
[null,"תכניות פרטי בנין ומיפרטים",null,0.15,"%"]
["פיקוח עליון ","פקוח עליון",null,0.15,"%"]
[null,"קבלת המבנה ואישורו",null,0.03,"%"]
[null,"בדיקת ואישור חשבון סופי של הקבלן",null,0.02,"אופציה"]
[]
[]
["סוג העבודה",null,"שלבי תכנון",null,null,"רה תכנון",null,null,null,null,null,"מהות רה תכנון"]
[null,null,"שם מקטע","אומדן/  אומדן מעודכן","שטח /שטח מעודכן(מ\"ר)","מס' שיפוט שעבר","ערך השינוי (₪)","ערך השינוי (מ\"ר)","שרותים חלקיים (אבני דרך)"]
[null,null,null,"אומדן","שטח",null,"אומדן שינוי ","אומדן שינוי ","מוקדם %","סופי %","מפורט %"]
["גשרים (קבוצה 1)"]
["קירות תומכים (קבוצה 1)"]
["מבנים הנדסיים אחרים (קבוצות 2-5)"]
["עבודות מיוחדות (קבוצה 6)"]
["סה\"כ"]
[]
["הערה :"]
["קבוצות 1,6  - למלא נתוני אומדן מבנה בלבד"]
["קבוצות 2-5  - למלא נתוני אומדן ושטח המבנה"]
[]
[]
["חתימה מנה\"פ/ חטיבה המבצעת"]

{"sheet":"אדר' נוף","index":7,"n_rows":37,"n_cols":10,"rows_kept":37,"cut":false,"hidden":false,"merged":[[12,4,12,7],[12,8,12,9],[14,0,14,1],[0,0,0,8],[3,1,3,3],[4,1,4,3],[5,1,5,3],[6,1,6,3],[7,1,7,3],[15,0,15,1],[18,0,18,1],[28,0,30,1],[28,2,28,3],[12,0,13,1],[12,2,12,3],[31,0,31,1],[32,0,32,1],[29,6,29,8],[28,4,28,8],[36,0,36,10],[28,9,30,9],[29,2,30,2],[29,3,30,3],[29,4,30,4],[29,5,30,5]]}
["תעריף  נתיבי איילון אדריכלות נוף- תכנון נופי "]
[]
[]
["שם המתכנן "]
["שם הפרוקט"]
["מס' חוזה/ בקשה"]
["שם מנה\"פ"]
["פרטי קשר של מנה\"פ"]
[]
[]
[]
[]
["סוג העבודה",null,"שלבי תכנון",null,"עדכון שכ\"ט לשלבי תכנון  לפי לתוצאת מכרז לביצוע",null,null,null,"פיקוח עליון "]
[null,null,"שם מקטע","אומדן/  אומדן מעודכן","מס' מכרז לביצוע","הנחת קבלן","בקרת אומדן / RFT","תוצאת מכרז","הקמת חוזה לפי תוצאת מכרז","עדכון פ\"ע לפי חשבון סופי של קבלן"]
["עבודות נופי כולל גינון והשקיה"]
["קיר תומך/אקוסטי"]
["סה\"כ",null,null,{"$f":"SUM(D15:D16)","v":0}]
[]
["שירותים חלקיים  (אבני דרך)",null,"תכנון        ב - %"]
["תכנון מוקדם",0.1,"%"]
["תכנון סופי",0.2,"%"]
["תכנון מפורט",0.4,"%"]
["פיקוח עליון ",0.25,"%"]
["קבלת המבנה ואישורו",0.03,"%"]
["בדיקת ואישור חשבון סופי של הקבלן",0.02,"אופציה"]
[]
[]
[]
["סוג העבודה",null,"שלבי תכנון",null,"רה תכנון",null,null,null,null,"מהות רה תכנון"]
[null,null,"שם מקטע","אומדן/  אומדן מעודכן","מס' שיפוט שעבר","ערך השינוי (₪)","שרותים חלקיים (אבני דרך)"]
[null,null,null,"אומדן",null,"אומדן שינוי ","מוקדם %","סופי %","מפורט %"]
["עבודות נופי כולל גינון והשקיה"]
["קיר תומך/אקוסטי"]
["סה\"כ",null,null,{"$f":"SUM(D32:D33)","v":0}]
[]
[]
["חתימה מנה\"פ/ חטיבה המבצעת"]

{"sheet":"מע' רטובות","index":8,"n_rows":41,"n_cols":10,"rows_kept":41,"cut":false,"hidden":false,"merged":[[26,1,26,4],[0,0,0,8],[18,1,18,4],[11,0,11,1],[2,1,2,3],[3,1,3,3],[4,1,4,3],[5,1,5,3],[8,0,9,1],[8,2,8,3],[8,4,8,7],[8,8,8,9],[10,0,10,1],[12,0,12,1],[6,1,6,3],[25,1,25,4],[30,0,32,1],[30,2,30,3],[30,4,30,8],[13,0,13,1],[14,0,14,1],[15,0,15,1],[19,0,20,0],[21,0,23,0],[24,1,24,4],[19,1,19,4],[20,1,20,4],[21,1,21,4],[22,1,22,4],[23,1,23,4],[24,0,26,0],[17,0,17,5],[30,9,32,9],[31,2,32,2],[31,3,32,3],[31,4,32,4],[31,5,32,5],[31,6,31,8],[40,0,40,10],[33,0,33,1],[35,0,35,1],[36,0,36,1],[37,0,37,1],[38,0,38,1],[34,0,34,1]]}
["תעריף נתיבי איילון מים וביוב- מערכות מים , ביוב וניקוז"]
[]
["שם המתכנן "]
["שם הפרוקט"]
["מס' חוזה/ בקשה"]
["שם מנה\"פ"]
["פרטי קשר של מנה\"פ"]
[]
["סוג העבודה",null,"שלבי תכנון",null,"עדכון שכ\"ט לשלבי תכנון  לפי לתוצאת מכרז",null,null,null,"פיקוח עליון "]
[null,null,"שם מקטע","אומדן/  אומדן מעודכן","מס' מכרז","הנחת קבלן","בקרת אומדן / RFT","תוצאת מכרז","הקמת חוזה לפי תוצאת מכרז","עדכון פ\"ע לפי חשבון סופי של קבלן"]
["קווי ביוב"]
["קווי ניקוז"]
[" תעלת ניקוז"]
["סה\"כ ביוב וניקוז",null,null,{"$f":"SUM(D11:D13)","v":0}]
["קווי מים "]
["מתקני שאיבה"]
[]
["שירותים חלקיים  (אבני דרך)",null,null,null,null,null,"תכנון        ב - %"]
["תכנון מוקדם","תכנון מוקדם",null,null,null,0.15]
["תכנון סופי","תוכניות סופיות",null,null,null,0.1]
[null,"תוכניות להגשה וטיפול ברשויות ",null,null,null,0.05]
["תכנון מפורט ","חישוב הרשת והמיתקנים ",null,null,null,0.1]
[null,"תוכניות עבודה כוללות",null,null,null,0.3]
[null,"מיפרטים וחישובי כמויות",null,null,null,0.1]
["פיקוח עליון ","פיקוח עליון ",null,null,null,0.15]
[null,"קבלת המיתקן ואישורו",null,null,null,0.03]
[null,"בדיקת ואישור חשבון סופי של הקבלן",0.02,"בדיקת ואישור חשבון סופי של הקבלן",0.02,0.02,"אופציה"]
[]
[]
[]
["סוג העבודה",null,"שלבי תכנון",null,"רה תכנון",null,null,null,null,"מהות רה תכנון"]
[null,null,"שם מקטע","אומדן/  אומדן מעודכן","מס' שיפוט שעבר","ערך השינוי (₪)","שרותים חלקיים (אבני דרך)"]
[null,null,null,"אומדן",null,"אומדן שינוי ","מוקדם %","סופי %","מפורט %"]
["קווי ביוב"]
["קווי ניקוז"]
[" תעלת ניקוז"]
["סה\"כ ביוב וניקוז",null,null,{"$f":"SUM(D34:D36)","v":0}]
["קווי מים "]
["מתקני שאיבה"]
[]
["חתימה מנה\"פ/ חטיבה המבצעת"]

{"sheet":"קרקע וביסוס","index":9,"n_rows":32,"n_cols":10,"rows_kept":32,"cut":false,"hidden":false,"merged":[[6,1,6,3],[0,0,0,9],[2,1,2,3],[3,1,3,3],[4,1,4,3],[5,1,5,3],[8,8,8,9],[11,0,11,1],[12,0,12,1],[27,0,27,1],[8,0,9,1],[8,2,8,3],[8,4,8,7],[15,0,15,1],[23,9,25,9],[24,2,25,2],[24,3,25,3],[24,4,25,4],[24,5,25,5],[24,6,24,8],[28,0,28,1],[23,0,25,1],[23,2,23,3],[23,4,23,8],[31,0,31,10]]}
["תעריף נתיבי איילון  ייועץ בהנדסת קרקע וביסוס  - הנדסת ביסוס ויועץ"]
[]
["שם המתכנן "]
["שם הפרוקט"]
["מס' חוזה/ בקשה"]
["שם מנה\"פ"]
["פרטי קשר של מנה\"פ"]
[]
["סוג העבודה",null,"שלבי תכנון",null,"עדכון שכ\"ט לשלבי תכנון  לפי לתוצאת מכרז",null,null,null,"פיקוח עליון "]
[null,null,"שם מקטע","אומדן/  אומדן מעודכן","מס' מכרז","הנחת קבלן","בקרת אומדן / RFT","תוצאת מכרז","הקמת חוזה לפי תוצאת מכרז","עדכון פ\"ע לפי חשבון סופי של קבלן"]
["מבנים רגילים ותנאי קרקע רגילים"]
["מבנים מורכבים ותנאי קרקע רגילים / מבנים רגילים ותנאי קרקע מורכבים"]
["מבנים מורכבים ותנאי קרקע מורכבים"]
["סה\"כ",null,null,{"$f":"SUM(D12:D13)","v":0},{"$f":"SUM(E12:E13)","v":0},0,0,0,0,0]
[]
["שירותים חלקיים (אבני דרך)",null,"תכנון            ב - %"]
["חקירת השתית",0.25]
["תכנון מוקדם ",0.25]
["תכנון מפורט",0.35]
["פיקוח עליון ",0.15]
[]
[]
[]
["סוג העבודה",null,"שלבי תכנון",null,"רה תכנון",null,null,null,null,"מהות רה תכנון"]
[null,null,"שם מקטע","אומדן/  אומדן מעודכן","מס' שיפוט שעבר","ערך השינוי (₪)","שרותים חלקיים (אבני דרך)"]
[null,null,null,"אומדן",null,"אומדן שינוי ","מוקדם %","סופי %","מפורט %"]
["מבנים רגילים ותנאי קרקע רגילים"]
["מבנים מורכבים ותנאי קרקע רגילים / מבנים רגילים ותנאי קרקע מורכבים"]
["מבנים מורכבים ותנאי קרקע מורכבים"]
["סה\"כ",null,null,{"$f":"SUM(D28:D29)","v":0}]
[]
["חתימה מנה\"פ/ חטיבה המבצעת"]

{"sheet":"תאורת דרכים","index":10,"n_rows":37,"n_cols":10,"rows_kept":37,"cut":false,"hidden":false,"merged":[[36,0,36,10],[1,1,1,6],[32,0,32,1],[33,0,33,1],[29,4,30,4],[28,2,28,3],[31,0,31,1],[28,0,30,1],[29,3,30,3],[18,1,18,4],[7,1,7,3],[18,0,19,0],[20,0,22,0],[23,0,25,0],[28,9,30,9],[29,2,30,2],[29,6,29,8],[25,1,25,4],[0,0,0,8],[29,5,30,5],[9,4,9,7],[9,8,9,9],[12,0,12,1],[13,0,13,1],[3,1,3,3],[4,1,4,3],[5,1,5,3],[6,1,6,3],[9,0,10,1],[9,2,9,3],[19,1,19,4],[20,1,20,4],[11,0,11,1],[16,0,16,5],[17,1,17,4],[24,1,24,4],[28,4,28,8],[21,1,21,4],[22,1,22,4],[23,1,23,4]]}
["תעריף נתיבי איילון חשמל ומעליות  - חשמל ותאורה"]
[null,"תאורת דרכים"]
[]
["שם המתכנן "]
["שם הפרוקט"]
["מס' חוזה/ בקשה"]
["שם מנה\"פ"]
["פרטי קשר של מנה\"פ"]
[]
["סוג העבודה",null,"שלבי תכנון",null,"עדכון שכ\"ט לשלבי תכנון  לפי לתוצאת מכרז",null,null,null,"פיקוח עליון "]
[null,null,"שם מקטע","אומדן/  אומדן מעודכן","מס' מכרז","הנחת קבלן","בקרת אומדן / RFT","תוצאת מכרז","הקמת חוזה לפי תוצאת מכרז","עדכון פ\"ע לפי חשבון סופי של קבלן"]
["מתקנים רגילים"]
["מתכנים מורכבים"]
["מתקנים מיוחדים"]
["סה\"כ",null,null,{"$f":"SUM(D13:D14)","v":0},{"$f":"SUM(E13:E14)","v":0},0,0,0,0,0]
[]
["שירותים חלקיים (אבני דרך)",null,null,null,null,null,"תכנון        ב - %"]
["תכנון מוקדם","תכנון מוקדם",null,null,null,0.1,"%"]
["תכנון סופי ","תוכניות סופיות",null,null,null,0.2,"%"]
[null,"תוכניות לרשויות וטיפול באישורן ",null,null,null,0.05,"%"]
["תכנון מפורט","חישוב מערכות המיתקן ",null,null,"חישוב מערכות המיתקן (10%)",0.1,"%"]
[null,"תוכניות מערך או התקנה כוללת ",null,null,null,0.3,"%"]
[null,"מפרטים וכתב כמויות",null,null,null,0.05,"%"]
["פיקוח עליון ","פיקוח עליון ",null,null,null,0.15,"%"]
[null,"קבלת המיתקן ואישורו",null,null,null,0.03,"%"]
[null,"בדיקת ואישור חשבון סופי של הקבלן",null,null,null,0.02,"אופציה"]
[]
[]
["סוג העבודה",null,"שלבי תכנון",null,"רה תכנון",null,null,null,null,"מהות רה תכנון"]
[null,null,"שם מקטע","אומדן/  אומדן מעודכן","מס' שיפוט שעבר","ערך השינוי (₪)","שרותים חלקיים (אבני דרך)"]
[null,null,null,null,null,"אומדן שינוי ","מוקדם %","סופי %","מפורט %"]
["מתקנים רגילים"]
["מתכנים מורכבים"]
["מתקנים מיוחדים"]
["סה\"כ",null,null,{"$f":"SUM(D33:D34)","v":0}]
[]
["חתימה מנה\"פ/ חטיבה המבצעת"]

{"sheet":"תכנון חשמל במבנים","index":11,"n_rows":37,"n_cols":10,"rows_kept":37,"cut":false,"hidden":false,"merged":[[31,0,31,1],[32,0,32,1],[33,0,33,1],[28,0,30,1],[28,2,28,3],[28,4,28,8],[28,9,30,9],[29,2,30,2],[29,3,30,3],[29,4,30,4],[29,5,30,5],[29,6,29,8],[36,0,36,10],[25,1,25,4],[12,0,12,1],[13,0,13,1],[16,0,16,5],[17,1,17,4],[18,1,18,4],[19,1,19,4],[20,1,20,4],[21,1,21,4],[22,1,22,4],[23,1,23,4],[24,1,24,4],[18,0,19,0],[20,0,22,0],[23,0,25,0],[11,0,11,1],[0,0,0,8],[1,1,1,6],[3,1,3,3],[4,1,4,3],[5,1,5,3],[6,1,6,3],[7,1,7,3],[9,0,10,1],[9,2,9,3],[9,4,9,7],[9,8,9,9]]}
["תעריף נתיבי איילון חשמל ומעליות  - חשמל ותאורה"]
[null,"תכנון חשמל במבנים"]
[]
["שם המתכנן "]
["שם הפרוקט"]
["מס' חוזה/ בקשה"]
["שם מנה\"פ"]
["פרטי קשר של מנה\"פ"]
[]
["סוג העבודה",null,"שלבי תכנון",null,"עדכון שכ\"ט לשלבי תכנון  לפי לתוצאת מכרז",null,null,null,"פיקוח עליון "]
[null,null,"שם מקטע","אומדן/  אומדן מעודכן","מס' מכרז","הנחת קבלן","בקרת אומדן / RFT","תוצאת מכרז","הקמת חוזה לפי תוצאת מכרז","עדכון פ\"ע לפי חשבון סופי של קבלן"]
["מתקנים רגילים"]
["מתכנים מורכבים"]
["מתקנים מיוחדים"]
["סה\"כ",null,null,{"$f":"SUM(D13:D14)","v":0},{"$f":"SUM(E13:E14)","v":0},0,0,0,0,0]
[]
["שירותים חלקיים (אבני דרך)",null,null,null,null,null,"תכנון        ב - %"]
["תכנון מוקדם","תכנון מוקדם",null,null,null,0.15,"%"]
["תכנון סופי ","תוכניות סופיות",null,null,null,0.05,"%"]
[null,"תוכניות לרשויות וטיפול באישורן ",null,null,null,0.05,"%"]
["תכנון מפורט","חישוב מערכות המיתקן ",null,null,"חישוב מערכות המיתקן (10%)",0.1,"%"]
[null,"תוכניות מערך או התקנה כוללת ",null,null,null,0.35,"%"]
[null,"מפרטים וכתב כמויות",null,null,null,0.1,"%"]
["פיקוח עליון ","פיקוח עליון ",null,null,null,0.15,"%"]
[null,"קבלת המיתקן ואישורו",null,null,null,0.03,"%"]
[null,"בדיקת ואישור חשבון סופי של הקבלן",null,null,null,0.02,"אופציה"]
[]
[]
["סוג העבודה",null,"שלבי תכנון",null,"רה תכנון",null,null,null,null,"מהות רה תכנון"]
[null,null,"שם מקטע","אומדן/  אומדן מעודכן","מס' שיפוט שעבר","ערך השינוי (₪)","שרותים חלקיים (אבני דרך)"]
[null,null,null,null,null,"אומדן שינוי ","מוקדם %","סופי %","מפורט %"]
["מתקנים רגילים"]
["מתכנים מורכבים"]
["מתקנים מיוחדים"]
["סה\"כ",null,null,{"$f":"SUM(D33:D34)","v":0}]
[]
["חתימה מנה\"פ/ חטיבה המבצעת"]

{"sheet":"קונסטקוקציה","index":12,"n_rows":56,"n_cols":11,"rows_kept":56,"cut":false,"hidden":false,"merged":[[36,0,38,0],[39,1,39,2],[40,1,40,2],[31,0,33,0],[20,1,20,2],[21,1,21,2],[22,1,22,2],[24,0,24,2],[26,0,27,0],[28,0,30,0],[49,1,49,2],[41,1,41,2],[50,1,50,2],[55,0,55,10],[51,1,51,2],[52,1,52,2],[46,0,46,6],[47,1,47,2],[48,1,48,2],[44,0,44,2],[0,17,0,26],[0,0,0,10],[10,1,10,2],[11,1,11,2],[12,1,12,2],[8,0,9,0],[3,1,3,3],[4,1,4,3],[8,9,8,10],[5,1,5,3],[6,1,6,3],[2,1,2,3],[8,3,8,4],[8,5,8,8],[8,1,9,2],[13,1,13,2],[36,10,38,10],[43,1,43,2],[36,3,36,4],[36,5,36,9],[37,7,37,9],[37,5,38,5],[37,4,38,4],[37,6,38,6],[36,1,38,2],[42,1,42,2],[14,1,14,2],[16,0,16,6],[17,1,17,2],[18,1,18,2],[19,1,19,2]]}
["תעריף נתיבי איילון מבני הנדסה אזרחית- תכנון מבני קונסטרוקציה"]
[]
["שם המתכנן "]
["שם הפרוקט"]
["מס' חוזה/ בקשה"]
["שם מנה\"פ"]
["פרטי קשר של מנה\"פ"]
[]
["סוג מבנה","סוג העבודה",null,"שלבי תכנון",null,"עדכון שכ\"ט לשלבי תכנון  לפי לתוצאת מכרז",null,null,null,"פיקוח עליון "]
[null,null,null,"שם מקטע","אומדן/  אומדן מעודכן","מס' מכרז","הנחת קבלן","בקרת אומדן / RFT","תוצאת מכרז","הקמת חוזה לפי תוצאת מכרז","עדכון פ\"ע לפי חשבון סופי של קבלן"]
["מבנים רגילים","גשרים (עד מפתח של 10מ')"]
[null,"קירות תומכים ועבודות דיפון"]
[null,"מעבירי מים, גשרי שילוט וכו'"]
["מבנים מורכבים","גשרים (מעל מפתח של 10מ')"]
[null,"מנהרות"]
["סה\"כ"]
["תוספת למבנים מיחודים (יש לסמן סוג התוספת)"]
["סוג מבנה מיוחד","סוג העבודה",null,"מבנה מבטון דרוך","אלמנטים טרומיים","מבנים מרחביים","מבנים עם קבלים"]
["מבנים רגילים","גשרים (עד מפתח של 10מ')"]
[null,"קירות תומכים ועבודות דיפון"]
[null,"מעבירי מים, גשרי שילוט וכו'"]
["מבנים מורכבים","גשרים (מעל מפתח של 10מ')"]
[null,"מנהרות"]
[]
["שירותים חלקיים (אבני דרך)",null,null,"תכנון        ב - %"]
["תכנון מוקדם ","תכנון מוקדם",0.15,"%"]
["תכנון סופי ","תוכניות סופיות",0.1,"%"]
[null,"תוכניות להגשה וטיפול באישור הרשויות",0.05,"%"]
["תכנון מפורט","חישוב יציבות המבנה",0.17,"%"]
[null,"תוכניות עבודה כוללות",0.25,"%"]
[null,"מיפרטים וחישוב כמויות",0.08,"%"]
["פיקוח עליון ","פיקוח עליון ",0.15,"%"]
[null,"קבלת המיתקן ואישורו",0.03,"%"]
[null,"בדיקת ואישור חשבון סופי של הקבלן",0.02,"אופציה"]
[]
[]
["סוג מבנה","סוג העבודה",null,"שלבי תכנון",null,"רה תכנון",null,null,null,null,"מהות רה תכנון"]
[null,null,null,"שם מקטע","אומדן/  אומדן מעודכן","מס' שיפוט שעבר","ערך השינוי (₪)","שרותים חלקיים (אבני דרך)"]
[null,null,null,null,null,null,"אומדן שינוי ","מוקדם %","סופי %","מפורט %"]
["מבנים רגילים","גשרים (עד מפתח של 10מ')"]
[null,"קירות תומכים ועבודות דיפון"]
[null,"מעבירי מים, גשרי שילוט וכו'"]
["מבנים מורכבים","גשרים (מעל מפתח של 10מ')"]
[null,"מנהרות"]
["סה\"כ"]
[]
["תוספת למבנים מיוחדים (יש לסמן סוג התוספת)"]
["סוג מבנה מיוחד","סוג העבודה",null,"מבנה מבטון דרוך","אלמנטים טרומיים","מבנים מרחביים","מבנים עם כבלים"]
["מבנים רגילים","גשרים (עד מפתח של 10מ')"]
[null,"קירות תומכים ועבודות דיפון"]
[null,"מעבירי מים, גשרי שילוט וכו'"]
["מבנים מורכבים","גשרים (מעל מפתח של 10מ')"]
[null,"מנהרות"]
[]
[]
["חתימה מנה\"פ/ חטיבה המבצעת"]

{"sheet":"רמזורים","index":13,"n_rows":57,"n_cols":16,"rows_kept":57,"cut":false,"hidden":false,"merged":[[56,0,56,10],[35,2,37,2],[26,2,26,3],[27,2,27,3],[28,2,28,3],[29,2,29,3],[30,2,30,3],[48,0,48,1],[49,0,49,1],[41,0,41,1],[27,4,27,6],[28,4,28,6],[29,4,29,6],[30,4,30,6],[26,4,26,6],[35,3,35,6],[35,15,37,15],[36,7,37,7],[36,12,36,14],[35,7,35,14],[47,0,47,1],[36,8,37,8],[36,9,36,11],[42,0,42,1],[43,0,43,1],[44,0,44,1],[45,0,45,1],[46,0,46,1],[38,0,38,1],[39,0,39,1],[35,0,37,1],[40,0,40,1],[0,0,0,11],[9,4,9,6],[9,3,10,3],[8,0,10,1],[8,7,8,11],[5,1,5,5],[6,1,6,5],[9,7,10,7],[2,1,2,5],[8,2,10,2],[8,16,8,18],[3,1,3,5],[4,1,4,5],[9,16,9,18],[18,0,18,1],[12,0,12,1],[13,0,13,1],[14,0,14,1],[15,0,15,1],[16,0,16,1],[9,8,10,8],[8,3,8,6],[9,9,9,11],[8,12,8,15],[9,12,10,12],[9,13,9,15],[36,3,37,3],[36,4,36,6],[11,0,11,1],[17,0,17,1],[26,0,26,1],[21,0,21,1],[22,0,22,1],[19,0,19,1],[20,0,20,1],[31,2,31,3],[31,4,31,6]]}
["תעריף רמזורים (עיריית ירושלים) "]
[]
["שם המתכנן "]
["שם הפרוקט"]
["מס' חוזה/ בקשה"]
["שם מנה\"פ"]
["פרטי קשר של מנה\"פ"]
[]
["סוג רמזורים",null,"שם מקטע","שלבי תכנון",null,null,null,"עדכון שכ\"ט לשלבי תכנון  לפי לתוצאת מכרז",null,null,null,null,"עדכון פ\"ע לפי חשבון סופי של קבלן"]
[null,null,null,"כמות רמזורים/ כמות עדכנית","תוספת לגל ירוק (יחידות)",null,null,"מס' מכרז","יחידה מעודכנת","תוספת לגל ירוק (יחידות)",null,null,"יחידה","תוספת לגל ירוק (יחידות)"]
[null,null,null,null,"חיבור לגל ירוק קיים","גל ירוק בין שני צמתים","גל ירוק בין 3 צמתים ויותר",null,null,"חיבור לגל ירוק קיים","גל ירוק בין שני צמתים","גל ירוק בין 3 צמתים ויותר",null,"חיבור לגל ירוק קיים","גל ירוק בין שני צמתים","גל ירוק בין 3 צמתים ויותר"]
["תכנון רמזור ללא עדכון תכנון"]
["קצוב זמן"]
["מופעל תנועה חלקי"]
["מופעל תנועה מלא"]
["הולכי רגל קצוב זמן"]
["הולכי רגל מופעל תנועה"]
["תכנון רמזור ללא שינוי גיאומטרי"]
["קצוב זמן"]
["מופעל תנועה חלקי"]
["מופעל תנועה מלא"]
["הולכי רגל קצוב זמן"]
["הולכי רגל מופעל תנועה"]
["סה\"כ"]
[]
[]
["שירותים חלקיים",null,"תכנון        ב - %",null,"הערות"]
["תכנון מוקדם",0.4,"%",null,"במידה והמתכנן, מתכנן גם תנועה- תכנון מוקדם- 30%"]
["תכנון סופי ",0.2,"%"]
["תכנון מפורט ",0.2,"%"]
["פיקוח עליון ",0.18,"%"]
["בדיקת ואישור חשבון סופי של הקבלן",0.02,"%",null,"אופציה"]
[]
[]
[]
["סוג רמזורים",null,"שם מקטע","שלבי תכנון",null,null,null,"רה התכנון",null,null,null,null,null,null,null,"מהות רה תכנון"]
[null,null,null,"כמות רמזורים/ כמות מעודכנת","תוספת לגל ירוק (יחידות)",null,null,"מס' שיפוט שעבר","ערך השינוי (כמות רמזורים)","תוספת לגל ירוק (יחידות)",null,null,"שרותים חלקיים (אבני דרך)"]
[null,null,null,null,"חיבור לגל ירוק קיים","גל ירוק בין שני צמתים","גל ירוק בין 3 צמתים ויותר",null,"אומדן שינוי ","חיבור לגל ירוק קיים","גל ירוק בין שני צמתים","גל ירוק בין 3 צמתים ויותר","מוקדם %","סופי %","מפורט %"]
["תכנון רמזור ללא עדכון תכנון"]
["קצוב זמן"]
["מופעל תנועה חלקי"]
["מופעל תנועה מלא"]
["הולכי רגל קצוב זמן"]
["הולכי רגל מופעל תנועה"]
["תכנון רמזור ללא שינוי גיאומטרי"]
["קצוב זמן"]
["מופעל תנועה חלקי"]
["מופעל תנועה מלא"]
["הולכי רגל קצוב זמן"]
["הולכי רגל מופעל תנועה"]
["סה\"כ"]
[]
["הערות: "]
["יש לצרף רשימת צמתים."]
[]
[]
["חתימה מנה\"פ/ חטיבה המבצעת"]

{"sheet":"תכן מבנה ","index":14,"n_rows":49,"n_cols":17,"rows_kept":49,"cut":false,"hidden":false,"merged":[[28,10,28,15],[6,2,6,4],[48,0,48,16],[5,0,5,1],[2,2,2,4],[3,2,3,4],[4,2,4,4],[5,2,5,4],[2,10,2,12],[3,10,3,12],[4,10,4,12],[5,10,5,12],[6,10,6,12],[28,16,29,16],[30,9,31,9],[27,0,27,16],[8,16,9,16],[8,2,8,9],[8,10,8,15],[8,1,11,1],[8,0,11,0],[0,0,0,9],[2,0,2,1],[3,0,3,1],[4,0,4,1],[39,0,40,0],[40,1,40,4],[10,9,11,9],[19,0,19,4],[21,1,21,4],[20,0,21,0],[28,0,31,0],[28,1,31,1],[28,2,28,9],[38,0,38,4]]}
["תעריף - תכן מבנה"]
[]
["שם המתכנן "]
["שם הפרוקט"]
["מס' חוזה/ בקשה"]
["שם מנה\"פ"]
["פרטי קשר של מנה\"פ"]
[]
["מקטע","אורך פיזי","מאפיינים לסוג העבודה",null,null,null,null,null,null,null,"מאפייני מורכבות העבודה (מקדם אחד לכל קטע)",null,null,null,null,null,"תוספת  לאישור ברכבת ישראל "]
[null,null,"דרך חדשה","שיקום דרך חד-מסלולית ","שיקום דרך דו-מסלולית","הרחבה+ שיקום","שיקום שוליים, מעקות ומערכת הניקוז של הכביש","צמתים בודדים","דרכים זמניות לשלבי ביצוע ","מ\"ר שטחי חניות ורחבות אספלט שאינן חלק מהכביש ","ריסון שתית חרסתית ","יציבות סוללות גבוהות על גבי שתית חרסתית ","קונסולידציה של סוללות גבוהות ","מקדם 2+3 יחד ","מבנה מיסעה בתוך מי תהום ","סוגי קרקע אחרים"]
[null,null,null,"ללא תלות בכמות הנתיבים",null,null,"תכנון מפורט בלבד",null,null,"כל 10,000 מ\"ר יחושבו כ-1 ק\"מ",null,null,null,null,"ע\"פ נתוני סקרים"]
[null,null,1,1.3,1.4,1.5,0.5,1,0.4,null,1.5,1.2,1.5,1.6,1.3,1,1.1000000000000001]
["שם מקטע"]
["שם מקטע"]
["שם מקטע"]
[]
[]
[]
[]
["שרותים חלקיים"]
["מקטע","תכנון ראשוני (חוות דעת על החלופות)","תכנון סופי - שיפוט 2","תכנון מפורט - שיפוט 3","פיקוח עליון"]
[null,"שלבי תכנון ופ\"ע ב - %"]
["שם מקטע"]
["שם מקטע"]
[]
[]
[]
["רה התכנון"]
["מקטע","אורך פיזי","מאפיינים לסוג העבודה",null,null,null,null,null,null,null,"מאפייני מורכבות העבודה (מקדם אחד לכל קטע)",null,null,null,null,null,"תוספת  לאישור ברכבת ישראל "]
[null,null,"דרך חדשה","שיקום דרך חד-מסלולית ","שיקום דרך דו-מסלולית","הרחבה+ שיקום","שיקום שוליים, מעקות ומערכת הניקוז של הכביש","צמתים בודדים","דרכים זמניות לשלבי ביצוע ","מ\"ר שטחי חניות ורחבות אספלט שאינן חלק מהכביש ","ריסון שתית חרסתית ","יציבות סוללות גבוהות על גבי שתית חרסתית ","קונסולידציה של סוללות גבוהות ","מקדם 2+3 יחד ","מבנה מיסעה בתוך מי תהום ","סוגי קרקע אחרים"]
[null,null,null,"ללא תלות בכמות הנתיבים",null,null,"תכנון מפורט בלבד",null,null,"כל 10,000 מ\"ר יחושבו כ-1 ק\"מ",null,null,null,null,"ע\"פ נתוני סקרים"]
[null,null,1,1.3,1.4,1.5,0.5,1,0.4,null,1.5,1.2,1.5,1.6,1.3,1,1.1000000000000001]
["שם מקטע"]
["שם מקטע"]
["שם מקטע"]
[]
[]
[]
["שרותים חלקיים לרה התכנון"]
["מקטע","תכנון ראשוני (חוות דעת על החלופות)","תכנון סופי - שיפוט 2","תכנון מפורט - שיפוט 3","פיקוח עליון"]
[null,"שלבי תכנון ופ\"ע ב - %"]
["שם מקטע"]
["שם מקטע"]
[]
[]
[]
[]
[]
["חתימה מנה\"פ/ חטיבה המבצעת"]

{"sheet":"תאום תשתיות","index":15,"n_rows":43,"n_cols":9,"rows_kept":43,"cut":false,"hidden":false,"merged":[[6,1,6,4],[0,0,0,8],[2,1,2,4],[3,1,3,4],[4,1,4,4],[5,1,5,4],[42,0,42,8],[8,3,8,6],[8,7,8,8],[30,2,31,2],[30,3,31,3],[30,4,31,4],[30,5,30,7],[29,8,31,8],[29,3,29,7],[30,0,31,0],[30,1,31,1],[29,0,29,1],[8,0,8,1]]}
["תעריף נתיבי איילון- תאום תשתיות"]
[]
["שם המתכנן "]
["שם הפרוקט"]
["מס' חוזה/ בקשה"]
["שם מנה\"פ"]
["פרטי קשר של מנה\"פ"]
[]
["תאור",null,"שלבי תכנון","עדכון שכ\"ט לשלבי תכנון  לפי לתוצאת מכרז",null,null,null,"פיקוח עליון "]
["פרק","אחוז מעלות העבודה","אומדן/  אומדן מעודכן","מס' מכרז","הנחת קבלן","בקרת אומדן / RFT","תוצאת מכרז","הקמת חוזה לפי תוצאת מכרז","עדכון פ\"ע לפי חשבון סופי של קבלן"]
["קו ביוב (כל הפרק)",1]
["קו מים (כל הפרק)",1]
["קו ניקוז (כל הפרק)",1]
["צנרת השקייה",1]
["קווי תקשורת (צנרת+תאים)",1]
["תאורה וחשמל (עבודות תת קרקעיות, כולל יסודות לעמודי תאורה)",1]
["פרק 51- סלילה (חפירה, מילוי, מצעים, אספלט, אבני שפה) כביש עירוני",1]
["פרק 51- סלילה (חפירה, מילוי, מצעים, אספלט, אבני שפה) בין עירוני",0.5]
["סה\"כ אומדן",null,{"$f":"SUM(C11:C18)","v":0}]
[]
[]
["שירותים חלקיים",null,"   תכנון   ב - %"]
["תכנון מוקדם ",0.15,"%"]
["תכנון סופי ",0.15,"%"]
["תכנון מפורט ",0.5,"%"]
["פיקוח עליון ",0.2,"%"]
[]
[]
[]
["תאור",null,"שלבי תכנון","רה תכנון",null,null,null,null,"מהות רה תכנון"]
["פרק","אחוז מעלות העבודה","אומדן/  אומדן מעודכן","מס' שיפוט שעבר","ערך השינוי (₪)","שרותים חלקיים (אבני דרך)"]
[null,null,null,null,null,"מוקדם %","סופי %","מפורט %"]
["קו ביוב (כל הפרק)",1]
["קו מים (כל הפרק)",1]
["קו ניקוז (כל הפרק)",1]
["צנרת השקייה",1]
["קווי תקשורת (צנרת+תאים)",1]
["תאורה וחשמל (עבודות תת קרקעיות, כולל יסודות לעמודי תאורה)",1]
["פרק 51- סלילה (חפירה, מילוי, מצעים, אספלט, אבני שפה) כביש עירוני",1]
["פרק 51- סלילה (חפירה, מילוי, מצעים, אספלט, אבני שפה) בין עירוני",0.5]
[]
[]
["חתימה מנה\"פ/ חטיבה המבצעת"]

{"sheet":"תקשורת","index":16,"n_rows":39,"n_cols":12,"rows_kept":39,"cut":false,"hidden":false,"merged":[[3,1,3,4],[4,1,4,4],[5,1,5,4],[6,1,6,4],[7,1,7,4],[28,0,30,0],[28,1,29,1],[29,5,30,5],[29,6,30,6],[29,7,29,9],[28,2,28,4],[28,10,30,11],[31,10,31,11],[32,10,32,11],[33,10,33,11],[34,10,34,11],[1,0,1,12],[38,0,38,8],[35,10,35,11],[24,1,24,3],[9,2,9,4],[9,1,10,1],[22,0,23,0],[20,1,20,3],[21,1,21,3],[22,1,22,3],[23,1,23,3],[9,0,11,0],[19,1,19,4],[9,5,9,8],[9,9,9,11],[28,5,28,9]]}
[]
["תעריף נתיבי איילון- קווי תקשורת"]
[]
["שם המתכנן "]
["שם הפרוקט"]
["מס' חוזה/ בקשה"]
["שם מנה\"פ"]
["פרטי קשר של מנה\"פ"]
[]
["קווי תקשורת","קו קיים","תכנון  (קו מתוכנן) מ\"א/ מ\"א מעודכן",null,null,"עדכון שכ\"ט לשלבי תכנון לפי תוצאת מכרז",null,null,null,"עדכון פקוח עליון לפי נחשבון סופי של קבלן"]
[null,null,"העתקה","הגנה ","תשתיות צנרת חדשה","מס' מכרז","העתקה","הגנה ","תשתיות צנרת חדשה","העתקה מ\"א","הגנה","תשתיות צנרת"]
[null,"מ\"א","מ\"א","מ\"א","ק\"מ",null,"מ\"א","מ\"א","ק\"מ","מ\"א","מ\"א","ק\"מ"]
["בזק"]
["הוט"]
["סלקום"]
["פרטנר"]
["תשתית צנרת  חדשה"]
[]
[]
["שלב תכנון","שירותים חלקיים",null,null,null,"   תכנון   ב - %"]
["תכנון מוקדם (קוו קיים)","מיפוי תשתיות ",null,null,0.2,"%"]
["תכנון סופי (קוו מתוכנן)","תכנון סופי ",null,null,0.1,"%"]
["תכנון מפורט (קוו מתוכנן)","גמר תכנון הפתרון ואישורו ע\"י הגורם הרלוונטי ",null,null,0.3,"%"]
[null,"אישור ועדת שיפוט 3",null,null,0.25,"%"]
["פיקוח עליון ","פיקוח עליון ",null,null,0.15,"%"]
[]
[]
[]
["קווי תקשורת","קו קיים","תכנון  (קו מתוכנן) מ\"א/ מ\"א מעודכן",null,null,"רה תכנון (קוו מתוכנן)",null,null,null,null,"מהות רה תכנון"]
[null,null,"העתקה","הגנה ","תשתיות צנרת חדשה","מס' שיפוט שעבר","ערך השינוי (מ\"א )","שרותים חלקיים (אבני דרך)"]
[null,"מ\"א","מ\"א","מ\"א","ק\"מ",null,"אומדן שינוי ","סופי %","גמר תכנון ואישורו%","אישור שיפוט 3 "]
["בזק"]
["הוט"]
["סלקום"]
["פרטנר"]
["תשתית צנרת  חדשה"]
[]
[]
["חתימה מנה\"פ/ חטיבה המבצעת"]

{"sheet":"אגרונום להתקשרות חדשה","index":17,"n_rows":28,"n_cols":4,"rows_kept":28,"cut":false,"hidden":false,"merged":[[27,0,27,5],[0,0,0,2],[2,0,2,2],[11,2,12,2],[11,0,12,1]]}
["מהדורה 06.03.22"]
[]
["תעריף נתיבי איילון סקר עצים  - אגרונום"]
[]
[]
["שם המתכנן "]
["שם הפרוקט"]
["מס' חוזה/ בקשה"]
["שם מנה\"פ"]
["פרטי קשר של מנה\"פ"]
[]
["תאור",null,"סה\"כ כמות עצים (יח')"]
[]
["כמות עצים בודדים",null,"יח'","יש לסמן כמות "]
["כמות עצים במטע חקלאי",null,"יח'","יש לסמן כמות "]
["תוספת להכנת מכרזי תכנון ביצוע ",null,null,"יש לסמן \"כן \" או \"לא \" "]
["תוספת לטיפול בהעתקת עצים ",null,null,"יש לסמן כמות "]
["תוספת לטיפול עצים מיוחדים בעלי מעל 50 ס\"מ וגיל משוער מעל 80 שנה ",null,null,"יש לסמן כמות "]
[]
[]
["אבני דרך לחישוב שכ\"ט  ( עצים דודדים + עצים במטע חקלאי ) "]
["שירותים חלקיים",null,"   תכנון   ב - %"]
["תכנון מוקדם ",1,"%"]
["תכנון מפורט ",1,"%"]
["פיקוח עליון ",1,"%"]
[]
[]
["חתימה מנה\"פ/ חטיבה המבצעת"]

{"sheet":"נגישות מהיר לעיר","index":18,"n_rows":46,"n_cols":6,"rows_kept":46,"cut":false,"hidden":false,"merged":[[45,0,45,5],[6,1,6,2],[0,0,0,7],[2,1,2,2],[3,1,3,2],[4,1,4,2],[5,1,5,2],[40,0,40,1],[41,0,41,1],[10,0,11,0],[10,1,10,2],[10,3,10,4],[10,5,11,5],[30,0,30,2],[34,0,34,2],[39,0,39,2],[31,0,31,1],[32,0,32,1],[35,0,35,1],[36,0,36,1],[37,0,37,1]]}
["תעריף נתיבי איילון לפרויקט מהיר לעיר- יועץ נגישות"]
[]
["שם המתכנן "]
["שם הפרוקט"]
["מס' חוזה/ בקשה"]
["שם מנה\"פ"]
["פרטי קשר של מנה\"פ"]
[]
["כמות צמתים"]
[]
["תאור","שלבי תכנון",null,"עדכון שכ\"ט לשלבי תכנון  לפי לתוצאת מכרז",null,"עדכון פ\"ע לפי נתונים בפועל"]
[null,"מקדם","יש לסמן תאור הרלוונטי","מס' מכרז","יש לסמן תאור הרלוונטי"]
["כמות צמתים",null,"יח'","מס'","V","מלל"]
["פרויקט מסוג 1                                                  עם כמות צמתים/מחלפים נגישים פחות מ -3",0.8]
["פרויקט מסוג 2                                                    3 צמתים/מחלפים בהם קיימת גישה להולכי רגל",1]
["פרויקט מסוג 3                                                     עם כמות צמתים/מחלפים נגישים  מ -4 עד 10 צמתים/ מחלפים",1.3]
["פרויקט מסוג                                                      מעל 10 צמתים/ מחלפים","תוספת 600 ₪ לכל צומת נוסף"]
["פרויקט עם תחנת רכבת",1.3]
["פרויקט עם מנהרה",1.3]
[]
[]
[]
[]
["תוספות- מאפיינים פיזיים"]
["תאור","תוספת למחיר בסיס","יש לסמן תאור הרלוונטי"]
["שטח עירוני",0.3,"%"]
["גשר הולכי רגל",0.2,"%"]
["הכנה ואישור דו\"ח יועץ מורשה נגישות",0.5,"%"]
[]
[]
["תכנו מוקדם",null,null,"תכנון   ב- %"]
["מסמך תכנון מוקדם להגשה בפרויקט וחו\"ד לפטור או דרישה מופחתת",null,0.5,"%"]
["מסמך  חו\"ד לדרישה מופחתת, הכנת מצגת והכנת דו\"ח סופי.",null,0.5,"%"]
[]
["תכנון מפורט",null,null,"תכנון   ב- %"]
["מסמך נגישות לתכנון מפורט ומכתב אישור מסמכי מכרז לנגישות",null,0.5,"%"]
["מכתב אישור עמידת פרויקט בדרישות ההנגשה",null,0.25,"%"]
["אומדן עלויות סופי הכנת מצגת והכנת דו\"ח סופי",null,0.25,"%"]
[]
["פקוח עליון",null,null,"תכנון   ב- %"]
["מסמך הנחיות והמלצות להנגשת הנובעים מהשינוי התכנוני",null,0.5,"%"]
["מסמך אישור לוועדת מקומית. בפרויקט בו אין דרישה לאישור מוועדה מקומית - אישור גמר ביצוע ע\"י המזמין.",null,0.5,"%"]
[]
[]
[]
["חתימה מנה\"פ/ חטיבה המבצעת"]

{"sheet":"נגישות","index":19,"n_rows":41,"n_cols":7,"rows_kept":41,"cut":false,"hidden":false,"merged":[[6,2,6,3],[0,0,0,6],[2,2,2,3],[3,2,3,3],[4,2,4,3],[5,2,5,3],[33,1,33,2],[36,1,36,2],[40,1,40,6],[10,4,10,5],[10,6,11,6],[10,1,11,1],[10,2,10,3],[37,1,37,2],[27,1,27,2],[28,1,28,2],[31,1,31,2],[32,1,32,2]]}
["תעריף - יועץ נגישות"]
[]
[null,"שם המתכנן "]
[null,"שם הפרוקט"]
[null,"מס' חוזה/ בקשה"]
[null,"שם מנה\"פ"]
[null,"פרטי קשר של מנה\"פ"]
[]
[null,"כמות צמתים/מחליפים"]
[]
[null,"תאור","שלבי תכנון",null,"עדכון שכ\"ט לשלבי תכנון  לפי לתוצאת מכרז",null,"עדכון פ\"ע לפי נתונים בפועל"]
[null,null,"מקדם","יש לסמן תאור הרלוונטי","מס' מכרז","יש לסמן תאור הרלוונטי"]
[null,"פרויקט קטן עם כמות צמתים/מחלפים נגישים פחותה מ -3",0.8,"V","מס'","V ","מלל"]
[null,"פרויקט עם כמות 3 צמתים/מחלפים נגישים ",1]
[null,"פרויקט גדול עם כמות צמתים/מחלפים נגישים גדולה מ -3",1.3]
[null,"פרויקט עם תחנת רכבת",1.3]
[null,"פרויקט עם מנהרה",1.3]
[]
[]
[null,"תוספות- מאפיינים פיזיים"]
[null,"תאור","תוספת למחיר בסיס","יש לסמן תאור הרלוונטי"]
[null,"שטח עירוני",0.3,"%"]
[null,"גשר הולכי רגל",0.2,"%"]
[null,"הכנה ואישור דו\"ח יועץ מורשה נגישות",0.5,"%"]
[]
[]
[null,"תכנון מוקדם",null,null,"תכנון   ב- %"]
[null,"מסמך תכנון מוקדם להגשה בפרויקט וחו\"ד לפטור או דרישה מופחתת",null,0.5,"%"]
[null,"מסמך  חו\"ד לדרישה מופחתת, הכנת מצגת והכנת דו\"ח סופי.",null,0.5,"%"]
[]
[null,"תכנון מפורט"]
[null,"מסמך נגישות לתכנון מפורט ומכתב אישור מסמכי מכרז לנגישות",null,0.5,"%"]
[null,"מכתב אישור עמידת פרויקט בדרישות ההנגשה",null,0.25,"%"]
[null,"אומדן עלויות סופי הכנת מצגת והכנת דו\"ח סופי",null,0.25,"%"]
[]
[null,"פקוח עליון"]
[null,"מסמך הנחיות והמלצות להנגשת הנובעים מהשינוי התכנוני",null,0.5,"%"]
[null,"מסמך אישור לוועדת מקומית. בפרויקט בו אין דרישה לאישור מוועדה מקומית - אישור גמר ביצוע ע\"י המזמין.",null,0.5,"%"]
[]
[]
[null,"חתימה מנה\"פ/ חטיבה המבצעת"]

{"sheet":"תכנון מנה\"פ תכנון מכרז 9.16","index":20,"n_rows":41,"n_cols":16,"rows_kept":41,"cut":false,"hidden":true,"merged":[[40,0,40,8],[1,6,1,9],[8,0,10,0],[23,0,31,0],[32,0,38,0],[2,1,2,3],[3,1,3,3],[4,1,4,3],[5,1,5,3],[6,1,6,3],[9,12,9,14],[20,0,22,0],[8,11,8,15],[9,1,9,3],[8,1,8,4],[8,6,8,9],[9,6,9,8],[16,0,16,10],[17,0,19,0],[9,11,10,11]]}
["תעריף מנהל פרויקט (מכרז 9/16)"]
[null,null,null,null,null,null,"מכרז 9/16 - ניהול פרויקט תכנון"]
["שם המתכנן "]
["שם הפרוקט"]
["מס' חוזה/ בקשה"]
["שם מנה\"פ"]
["פרטי קשר של מנה\"פ"]
[]
["שלב תכנון","תכנון",null,null,null,null,"רה  תכנון",null,null,null,null,"עדכון שכ\"ט לשלבי תכנון בהתאם למכרז"]
[null,"לו\"ז",null,null,"אומדן/  אומדן מעודכן",null,"לו\"ז",null,null,"אומדן ",null,"מס' מכרז","לו\"ז",null,null,"אומדן ביצוע "]
[null,"מתאריך","עד תאריך","משך ביצוע","ש\"ח",null,"מתאריך","עד תאריך","משך ביצוע","ש\"ח",null,null,"מתאריך","עד תאריך","משך ביצוע","ש\"ח"]
["ראשון (שיפוט 1)"]
["מוקדם (שיפוט 2)"]
["מפורט (שיפוט 3)"]
[]
[]
["שירותים חלקיים",null,null,null,null,null,null,null,null,null,null,"תכנון          ב - %","רה תכנון      ב - %"]
["ראשון (שיפוט 1)",0.3,"סיום הליך איסוף מידע ותיאום ראשוני עם גורמי תכנון ורשויות"]
[null,0.4,"סיום הליך תכנון  חלופות ראשוניות לתוואי, סקירת תכנון"]
[null,0.3,"בחירת חלופה להמשך תכנון- אישור ועדת שיפוט 1"]
["תכנון מוקדם (שיפוט 2) ללא הליך סטטוטורי",0.3,"סיום הליך קידום תיאום תשתיות ורשויות מוקדם"]
[null,0.4,"סקירת תכנון סופי"]
[null,0.3,"אישור ועדת שיפוט 2"]
["תכנון מוקדם (שיפוט 2) עם הליך סטטוטורי",0.05,"סיום הליך קידום תיאום תשתיות ורשויות מוקדם ואישור גיאומטריה"]
[null,0.15,"הגשת דו\"ח תכנון סופי לאישור נתיבי איילון"]
[null,0.1,"הגשת תשריט דרך לוועדה"]
[null,0.1,"אישור תסקיר סביבתי"]
[null,0.1,"סקירת תכנון סופי"]
[null,0.05,"הגשת מסמכי התוכנית לוועדה"]
[null,0.2,"פרסום תכנית להפקדה"]
[null,0.15,"פרסום התכנית ברשומות למתן תוקף"]
[null,0.1,"עדכון דו\"ח תכנון סופי ואישור ועדת שיפוט 2"]
["מפורט (שיפוט 3)",0.25,"סיום הליך תיאום סופי של מרכיבי התכנון"]
[null,0.3,"סיום הליך תכנון מפורט- סקירת תכנון מפורט"]
[null,0.05,"אישור ועדת מעבר שלב תכנון מפורט למכרז"]
[null,0.2,"הכנת חומר למכרז והעברתו לבקרת החברה"]
[null,0.1,"עדכונים ומסירת חומר למכרז ביצוע, כולל עדכונים במהלך המכרז"]
[null,0.05,"פרסום מכרז, השתתפות בסיור קבלנים, ניתוח הצעות ובחירת קבלן ביצוע"]
[null,0.05,"סגירת חוזי צוות התכנון- הגשת הוראות שינויים ככל שידרשו, הגשת חשבונות סופיים"]
[]
["חתימה וחותמת ראש האגף"]

{"sheet":"מכתב למינוי מתכננים","index":21,"n_rows":44,"n_cols":2,"rows_kept":44,"cut":false,"hidden":false,"merged":[[43,0,43,8],[9,1,9,7],[7,2,7,4],[2,1,2,7],[3,2,3,4],[4,2,4,4],[5,2,5,4],[6,2,6,4]]}
[null,"תאריך:"]
[]
[null,"מכתב מנהל הפרויקט – מינוי מתכננים"]
[null,"שם המתכנן "]
[null,"שם הפרוקט"]
[null,"מס' חוזה/ בקשה"]
[null,"שם מנה\"פ"]
[null,"פרטי קשר של מנה\"פ"]
[]
[null,"יש להתייחס במכתב לנקודות הבאות בתיאור מילולי:"]
[]
[1,"תיאור פרוגרמת/ תכולת הפרויקט"]
[]
[]
[]
[]
[]
[]
[]
[]
[2,"גבולות הפרויקט"]
[]
[]
[]
[]
[]
[]
[]
[]
[3,"תכולת העבודה לפי דיסציפלינות."]
[]
[]
[]
[]
[]
[]
[]
[]
[]
[]
[]
[]
[]
["חתימה מנה\"פ/ חטיבה המבצעת"]

{"sheet":"מכתב עדכון שכר טרחה למתכנן","index":22,"n_rows":55,"n_cols":3,"rows_kept":55,"cut":false,"hidden":false,"merged":[[19,2,19,7],[28,2,28,7],[38,3,38,4],[39,3,39,4],[54,0,54,8],[7,3,7,5],[2,2,2,7],[3,3,3,5],[4,3,4,5],[5,3,5,5],[6,3,6,5]]}
[null,null,"תאריך: "]
[]
[null,null,"מכתב מנהל הפרויקט – עדכון שכר טרחה"]
[null,null,"שם המתכנן "]
[null,null,"שם הפרוקט"]
[null,null,"מס' חוזה/ בקשה"]
[null,null,"שם מנה\"פ"]
[null,null,"פרטי קשר של מנה\"פ"]
[]
[]
[null,1,"עדכון שכר טרחה בהתאם לנתוני הפרויקט המעודכנים"]
[]
[null,"א.","עדכון אומדן/שטח/ אורך/ יח'  , שרותים חלקיים, שלבי תכנון מעודכנים וכו'"]
[null,null,"מהות השינוי:"]
[]
[]
[]
[]
[]
[null,"ב.","עדכון שכר טרחה לשלב תכנון בהתאם לתוצאות מכרז או RFT (יש לציין אם הנחת המכרז כללה הנחה לפרקים או הנחה כוללת)"]
[null,null,"מס' מכרז קבלני או פניה פרטנית "]
[null,null,"מספר חוזה של הקבלן במערכת הפריוריטי (אם יש)"]
[null,null,"הנחת מכרז/הנחת  לפרקים/הנחה כוללת"]
[null,null,"הסבר:"]
[]
[]
[]
[]
[null,"ג.","עדכון שכר טרחה לפיקוח עליון בהתאם  לחשבון סופי של הקבלן"]
[null,null,"מס' מכרז קבלני או פניה פרטנית "]
[null,null,"מספר חוזה של הקבלן במערכת הפריוריטי (אם יש)"]
[null,null,"הנחת מכרז/הנחת  לפרקים/הנחה כוללת"]
[null,null,"הסבר:"]
[]
[]
[]
[null,2,"רה תכנון "]
[null,null,"מהות רה תכנון לעומת תכנון המקורי"]
[null,null,"מועד  וגורם בקשה לרה התכנון"]
[null,null,"מס' שיפוט שעבר תכנון"]
[]
[]
[]
[]
[]
[]
[]
[null,3,"שונות (תוספת תכולה וכיוב')"]
[null,null,"הסבר:"]
[]
[]
[]
[]
[]
["חתימה מנה\"פ/ חטיבה המבצעת"]

{"sheet":"מכרז 12-19 - ניהול פרויקט תכנון","index":23,"n_rows":68,"n_cols":8,"rows_kept":68,"cut":false,"hidden":false,"merged":[[2,1,2,3],[3,1,3,3],[4,1,4,3],[5,1,5,3],[6,1,6,3],[16,0,16,6],[55,0,55,6],[57,0,57,5],[56,0,56,5],[47,1,47,5],[50,1,50,5],[53,1,53,5],[41,1,41,5],[42,1,42,5],[44,1,44,5],[43,1,43,5],[45,1,45,5],[46,1,46,5],[51,1,51,5],[52,1,52,5],[33,1,33,5],[17,1,17,5],[18,1,18,5],[19,1,19,5],[20,1,20,5],[21,1,21,5],[62,0,63,0],[62,1,63,1],[62,2,63,2],[62,3,63,3],[62,4,62,6],[29,1,29,5],[22,1,22,5],[23,1,23,5],[61,2,61,6],[61,7,63,7],[39,1,39,5],[36,1,36,5],[37,1,37,5],[38,1,38,5],[30,1,30,5],[31,1,31,5],[32,1,32,5],[8,0,9,0],[67,0,67,8],[10,13,10,15],[48,1,48,5],[8,1,8,2],[8,3,8,6],[45,0,52,0],[24,1,24,5],[17,0,20,0],[21,0,24,0],[25,0,34,0],[35,0,44,0],[40,1,40,5],[34,1,34,5],[27,1,27,5],[28,1,28,5]]}
["מכרז 12/19 - ניהול פרויקט תכנון"]
[]
["שם מנה\"פ","שם מנה\"פ"]
["שם הפרוקט"]
["מס' חוזה/ בקשה"]
["שם גורם מקצועי החטיבה"]
["פרטי קשר של גורם מקצועי"]
[]
["תאור","שלבי תכנון",null,"עדכון שכ\"ט לשלבי תכנון  בהתאם  לתוצאת מכרז"]
[null,"אומדן קבלני ביצוע/  מעודכן","אומדן קבלני העתקת תשתיות/מעודכן","מס' מכרז","הנחת קבלן","בקרת אומדן קבלני / RFT","בקרת אומדן קבלני  / RFT העתקת תשתיות"]
["שם מקטע"]
["שם מקטע"]
[null,{"$f":"SUM(B12:B12)","v":0},{"$f":"SUM(C12:C12)","v":0}]
[]
[]
[]
["שרותים חלקיים לניהול תכנון",null,null,null,null,null,null,"ביצוע ב - %"]
["תכנון מוקדם 15%","סיום הליך איסוף מידע ותיאום ראשוני עם גורמי תכנון ורשויות;",null,null,null,null,0.3,"%"]
[null,"סיום הליך תכנון חלופות ראשוניות לתוואי, ואישור דוח תכנון ראשוני",null,null,null,null,0.25,"%"]
[null,"בחירת חלופה להמשך התכנון, ואישור ועדת שיפוט מס' 1;",null,null,null,null,0.35,"%"]
[null,"סגירת והסדרת כלל ההתקשרויות והחוזים עם ספקים, יועצים וקבלנים בפרויקט בהתאם לשלב תכנוני זה, עריכת ותשלום חשבונות חלקיים/סופיים, הכנת התייחסות בכתב ומסמכים תומכים לכל הסתייגויות ותביעות הספקים (במידה וישנן), לרבות הפקת מסמך ניתוח תביעות, הסדרת ההתקשרויות הנוגעות לשלב התכנוני הבא (ככל שיש בכך צורך), וכן השלמת כל התחייבויות מנהל הפרויקט לצורך קבלת תעודת גמר לשלב התכנון.",null,null,null,null,0.1,"%"]
["תכנון סופי   ללא סטוטורי 30%","סיום הליך קידום תיאום תשתיות ורשויות סופי",null,null,null,null,0.25,"%"]
[null,"אישור דוח תכנון סופי;",null,null,null,null,0.35,"%"]
[null,"אישור ועדת שיפוט מס' 2 ;",null,null,null,null,0.3,"%"]
[null,"סגירת והסדרת כלל ההתקשרויות והחוזים עם ספקים, יועצים וקבלנים בפרויקט בהתאם לשלב תכנוני זה, עריכת ותשלום חשבונות חלקיים/סופיים, הכנת התייחסות בכתב ומסמכים תומכים לכל הסתייגויות ותביעות הספקים (במידה וישנן), לרבות הפקת מסמך ניתוח תביעות, הסדרת ההתקשרויות הנוגעות לשלב התכנוני הבא (ככל שיש בכך צורך), וכן השלמת כל התחייבויות מנהל הפרויקט לצורך קבלת תעודת גמר לשלב התכנון.",null,null,null,null,0.1,"%"]
["תכנון סופי עם הליך סטטוטורי בוועדה מחוזית  30%","סיום הליך קידום תיאום תשתיות ורשויות סופי ואישור גיאומטריה;",null,null,null,null,0.05,"%"]
[null,"הגשת דו\"ח תכנון סופי לאישור החברה;",null,null,null,null,0.1,"%"]
[null,"אישור תשריט דרך;",null,null,null,null,0.1,"%"]
[null,"אישור תסקיר סביבתי",null,null,null,null,0.1,"%"]
[null,"הגשת מסמכי התכנית לוועדה, ואישור עמידה בתנאי סף;",null,null,null,null,0.05,"%"]
[null,"פרסום תכנית להפקדה",null,null,null,null,0.17499999999999999,"%"]
[null,"פרסום התכנית ברשומות למתן תוקף",null,null,null,null,0.15,"%"]
[null,"אישור דו\"ח תכנון סופי",null,null,null,null,7.4999999999999997E-2,"%"]
[null,"אישור ועדת שיפוט מס' 2 ;",null,null,null,null,0.1,"%"]
[null,"סגירת והסדרת כלל ההתקשרויות והחוזים עם ספקים, יועצים וקבלנים בפרויקט בהתאם לשלב תכנוני זה, עריכת ותשלום חשבונות חלקיים/סופיים, הכנת התייחסות בכתב ומסמכים תומכים לכל הסתייגויות ותביעות הספקים (במידה וישנן), לרבות הפקת מסמך ניתוח תביעות, הסדרת ההתקשרויות הנוגעות לשלב התכנוני הבא (ככל שיש בכך צורך), וכן השלמת כל התחייבויות מנהל הפרויקט לצורך קבלת תעודת גמר לשלב התכנון.",null,null,null,null,0.1,"%"]
["תכנון סופי עם הליך סטטוטורי בות\"ל 30%","סיום הליך קידום תיאום תשתיות ורשויות סופי",null,null,null,null,0.05,"%"]
[null,"הגשת דו\"ח תכנון סופי לאישור החברה",null,null,null,null,0.1,"%"]
[null,"קיום ישיבת היגוי (קונגרס)",null,null,null,null,0.05,"%"]
[null,"לאחר הגשת מסמכי התכנית בות\"ל",null,null,null,null,0.15,"%"]
[null,"פרסום תכנית להפקדה",null,null,null,null,0.2,"%"]
[null,"החלטת מליאה, לאחר דיון בהתנגדויות",null,null,null,null,0.1,"%"]
[null,"פרסום התכנית ברשומות למתן תוקף",null,null,null,null,0.15,"%"]
[null," אישור דוח תכנון סופי",null,null,null,null,0.05,"%"]
[null,"אישור ועדת שיפוט מס' 2;",null,null,null,null,0.05,"%"]
[null,"סגירת והסדרת כלל ההתקשרויות והחוזים עם ספקים, יועצים וקבלנים בפרויקט בהתאם לשלב תכנוני זה, עריכת ותשלום חשבונות חלקיים/סופיים, הכנת התייחסות בכתב ומסמכים תומכים לכל הסתייגויות ותביעות הספקים (במידה וישנן), לרבות הפקת מסמך ניתוח תביעות, הסדרת ההתקשרויות הנוגעות לשלב התכנוני הבא (ככל שיש בכך צורך), וכן השלמת כל התחייבויות מנהל הפרויקט לצורך קבלת תעודת גמר לשלב התכנון.",null,null,null,null,0.1,"%"]
["תכנון מפורט 50%","סיום הליך תיאום סופי של מרכיבי התכנון, הסדרי תנועה סופיים, הרשאות למבני דרך, השלמת גישושים, קידוחים, תיאום תשתיות ורשויות, כולל התחייבויות לביצוע;",null,null,null,null,0.25,"%"]
[null,"סיום הליך תכנון מפורט, אישור תכנון של שלבי הביצוע והסדרי תנועה זמניים",null,null,null,null,0.25,"%"]
[null,"אישור ועדת שיפוט מס' 3 ,קבלת תעודת גמר וכן השלמה של הסדרת זמינות קרקע, לרבות השלמה של העתקת תשתיות",null,null,null,null,0.1,"%"]
[null,"סיום הכנת חומר למכרז והעברת החומר לבקרת החברה",null,null,null,null,0.1,"%"]
[null,"אישור חברת הבקרה וקבלת RFT;",null,null,null,null,0.1,"%"]
[null,"לאחר השלמת הליך המכרז, השתתפות בסיור קבלנים, ניתוח הצעות והחלטה על בחירת קבלן/ני ביצוע;",null,null,null,null,0.1,"%"]
[null,"הגשת כל החשבונות החלקיים/סופיים של הספקים, יועצים וקבלנים בפרויקט, בהתאם לשלב תכנוני זה. הכנת התייחסות בכתב, ומסמכים תומכים לכל הסתייגויות ותביעות הספקים (במידה וישנן), לרבות הפקת מסמך היעדר תביעות.",null,null,null,null,0.05,"%"]
[null,"סגירת והסדרת כלל ההתקשרויות והחוזים של הספקים, יועצים וקבלנים בפרויקט, בהתאם לשלב תכנוני זה, תשלום כל החשבונות החלקיים/סופיים, הסדרת ההתקשרויות הנוגעות לשלב הפיקוח העליון (ככל שיש בכך צורך), וכן השלמת כל התחייבויות מנהל הפרויקט לצורך קבלת תעודת גמר לשלב התכנון.",null,null,null,null,0.05,"%"]
["תכנון בהתאם להתקדמות  5%","מהתמורה תשולם בהתאם להתקדמות התכנון ועמידה בלוחות הזמנים ואבני הדרך, לפי שיקול דעתו של המזמין. יובהר, כי בשיקול דעתו של המזמין, שלא לשלם כלל עבור חלק זה מהתמורה.",null,null,null,null,0.05,"%"]
[]
["שרותים חלקיים לניהול  תכנון העתקת תשתיות",null,null,null,null,null,null,"ביצוע ב - %"]
["לאחר אישור ועדת שיפוט מס' 2",null,null,null,null,null,0.5,"%"]
["לאחר אישור ועדת שיפוט מס' 3",null,null,null,null,null,0.5,"%"]
[]
[]
[]
["תאור","שלבי תכנון","רה תכנון",null,null,null,null,"מהות רה תכנון"]
[null,"אומדן/  אומדן מעודכן","מס' שיפוט שעבר","ערך השינוי (₪)","שרותים חלקיים (אבני דרך)"]
[null,null,null,null,"מוקדם %","סופי %","מפורט %"]
["שם מקטע"]
["שם מקטע"]
[]
["חתימה מנהל האגף של חטיבת המבצעת"]

{"sheet":"מכרז 12-19-ניהול פרויקט ביצוע","index":24,"n_rows":29,"n_cols":8,"rows_kept":29,"cut":false,"hidden":false,"merged":[[2,1,2,3],[3,1,3,3],[4,1,4,3],[5,1,5,3],[6,1,6,3],[8,1,8,3],[18,1,18,3],[19,1,19,3],[20,1,20,3],[28,0,28,8],[15,5,15,6],[17,1,17,3],[24,0,24,5],[25,0,25,5],[16,0,16,4],[23,0,23,6],[8,0,9,0]]}
["מכרז 12/19 - ניהול פרויקט ביצוע"]
[]
["שם מנה\"פ"]
["שם הפרוקט"]
["מס' חוזה/ בקשה"]
["שם גורם מקצועי החטיבה"]
["פרטי קשר של גורם מקצועי"]
[]
["תאור","עדכון שכ\"ט לפיקוח עליון "]
[null,"אומדן ביצוע","אומדן ביצוע העתקת תשתיות","חשבון סופי של קבלן"]
["שם מקטע"]
["שם מקטע"]
[]
[]
[]
[]
["שירותים חלקיים (אבני דרך)",null,null,null,null,"ביצוע ב - %"]
["תשולם לספק כתשלום חודשי קבוע"," אבן דרך זו,\nתחולק %35 מסך התמורה המגיעה לספק במספר חודשי הביצוע שנקבעו בצו התחלת\nהעבודה, המנה שתתקבל תהווה התמורה החודשית הקבועה לספק. ",null,null,0.35,"%"]
["התקדמות ביצוע העבודות בפרויקט","תשלום התמורה לספק בגין אבן דרך זו ייקבע בכל חודש בהתאם לחלק היחסי של העבודות שבוצעו על ידי הקבלן בפרויקט מתוך סה\"כ היקפן הכספי של העבודות. כלומר, אם בחודש מסוים הושלמו בפרויקט עבודות שערכן הכספי מהווה %5 מתוך היקפן הכספי הכולל של העבודות בפרויקט, תשולם לספק באותו החודש תמורה בשיעור של 2.5% =(5% * 50%)מסך התמורה לה הוא זכאי.",null,null,0.5,"%"]
["תשלום לספק לאחר גמר חשבון סופי","לאחר גמר חשבון סופי עם הקבלן בפרויקט ועם כל המתכננים, היועצים והספקים בפרויקט, מתן תעודת גמר מלאה לפרויקט וסיום המסירות הנדרשות של הפרויקט לכל רשות רלוונטית.",null,null,0.1,"%"]
["תשולם בהתאם להתקדמות התכנון","התקדמות התכנון ועמידה בלוחות הזמנים ואבני הדרך, לפי שיקול דעתו של המזמין. יובהר, כי בשיקול דעתו של המזמין, שלא לשלם כלל עבור חלק זה מהתמורה",null,null,0.05,"%"]
[]
[]
["שרותים חלקיים לניהול ביצוע העתקת תשתיות",null,null,null,null,null,null,"ביצוע ב - %"]
["תשולם לספק בהתאם להתקדמות ביצוע העתקת התשתיות",null,null,null,null,null,0.8,"%"]
["תשולם לספק בעת סיום העבודות, ובכפוף לאישור המזמין",null,null,null,null,null,0.2,"%"]
[]
[]
["חתימה מנהל האגף של חטיבת המבצעת"]

{"sheet":"מכתב מינוי לניהול ","index":25,"n_rows":36,"n_cols":2,"rows_kept":36,"cut":false,"hidden":false,"merged":[[9,1,9,7],[35,0,35,8],[2,1,2,7],[3,2,3,4],[4,2,4,4],[5,2,5,4],[6,2,6,4],[7,2,7,4]]}
[null,"תאריך:"]
[]
[null,"מכתב ראש האגף – מינוי מנהל פרויקט"]
[null,"שם מנה\"פ"]
[null,"שם הפרוקט"]
[null,"מס' חוזה/ בקשה"]
[null,"שם גורם מקצועי החטיבה"]
[null,"פרטי קשר של גורם מקצועי"]
[]
[null,"יש להתייחס במכתב לנקודות הבאות בתיאור מילולי:"]
[]
[1,"תיאור פרוגרמת/ תכולת הפרויקט"]
[]
[]
[]
[]
[]
[]
[]
[]
[2,"גבולות הפרויקט"]
[]
[]
[]
[]
[]
[3,"שונות"]
[]
[]
[]
[]
[]
[]
[]
[]
["חתימה מנהל האגף של חטיבת המבצעת"]

{"sheet":"מכתב עדכון שכר טרחה לניהול","index":26,"n_rows":55,"n_cols":6,"rows_kept":55,"cut":false,"hidden":false,"merged":[[54,0,54,8],[28,2,28,7],[2,2,2,7],[19,2,19,7],[3,3,3,5],[4,3,4,5],[5,3,5,5],[6,3,6,5],[7,3,7,5],[38,3,38,5],[39,3,39,5]]}
[null,null,"תאריך: "]
[]
[null,null,"מכתב ראש האגף – עדכון שכר טרחה לניהול פרויקט"]
[null,null,"שם מנה\"פ"]
[null,null,"שם הפרוקט"]
[null,null,"מס' חוזה/ בקשה"]
[null,null,"שם גורם מקצועי החטיבה"]
[null,null,"פרטי קשר של גורם מקצועי"]
[]
[]
[null,1,"עדכון שכר טרחה בהתאם לנתוני  המעודכנים"]
[]
[null,"א.","עדכון אומדן, שלבי תכנון מעודכנים וכו'"]
[null,null,"מהות השינוי:"]
[]
[]
[]
[]
[]
[null,"ב.","עדכון שכר טרחה לשלב תכנון בהתאם לתוצאות מכרז או RFT (יש לציין אם הנחת המכרז כללה הנחה לפרקים או הנחה כוללת)"]
[null,null,"מס' מכרז קבלני או פניה פרטנית ","מס'","מס'","מס'"]
[null,null,"מספר חוזה של הקבלן במערכת הפריוריטי (אם יש)","מס'","מס'","מס'"]
[null,null,"הנחת מכרז/הנחת  לפרקים/הנחה כוללת","%","%","%"]
[null,null,"הסבר:"]
[]
[]
[]
[]
[null,"ג.","עדכון שכר טרחה לפיקוח עליון בהתאם  לחשבון סופי של הקבלן"]
[null,null,"מס' מכרז קבלני או פניה פרטנית ","מס'","מס'","מס'"]
[null,null,"מספר חוזה של הקבלן במערכת הפריוריטי (אם יש)","מס'","מס'","מס'"]
[null,null,"הנחת מכרז/הנחת  לפרקים/הנחה כוללת","%","%","%"]
[null,null,"הסבר:"]
[]
[]
[]
[null,2,"רה תכנון "]
[null,null,"מהות רה תכנון לעומת תכנון המקורי"]
[null,null,"מועד  וגורם בקשה לרה התכנון","מועד"]
[null,null,"מס' שיפוט שעבר תכנון","מס'"]
[null,null,"מלל"]
[]
[]
[]
[]
[]
[]
[null,3,"שונות (תוספת תכולה וכיוב')"]
[null,null,"הסבר:"]
[]
[]
[]
[]
[]
["חתימה מנהל האגף של חטיבת המבצעת"]